bitfinex/quotes_ETHUSD_20250623
["timestamp","ask_amount","ask_price","bid_price","bid_amount"]
[1750664438801,7.187,2258.9,2258.8,4.42712944]
[1750664439686,1.905,2259.1,2259.0,4.42673749]
[1750664439890,9.092,2259.1,2258.9,4.42682652]
[1750664440218,9.092,2259.1,2258.9,4.43742652]
[1750664441176,9.092,2259.1,2259.0,4.42673749]
[1750664441570,9.092,2259.1,2259.0,4.43733749]
[1750664442319,0.8216,2259.5,2259.0,4.43733749]
[1750664442320,1.905,2259.3,2259.2,4.4263456]
[1750664442704,11.905,2259.3,2259.1,4.42639806]
[1750664444683,11.905,2259.3,2259.2,4.4263456]
[1750664445279,1.905,2259.3,2259.2,4.4263456]
[1750664445528,7.186,2259.6,2259.4,4.42595379]
[1750664445830,7.186,2259.9,2259.4,0.0442559]
[1750664445978,7.186,2259.9,2259.5,4.42564062]
[1750664446183,10.0,2259.8,2259.5,4.42564062]
[1750664446393,14.94544225,2259.9,2259.2,0.8852883]
[1750664446579,10.41431626,2259.8,2259.4,4.42595307]
[1750664446782,10.0588,2259.8,2259.4,4.42595307]
[1750664447343,10.0588,2259.8,2259.1,5.25807176]
[1750664447637,3.13394159,2259.7,2259.2,4.42615082]
[1750664447932,10.0,2259.6,2259.3,4.42605377]
[1750664448226,7.186,2259.5,2259.4,4.42595264]
[1750664448591,7.186,2259.5,2259.3,4.42605542]
[1750664449930,7.186,2259.5,2259.4,4.42595379]
[1750664451128,7.186,2259.5,2259.3,4.42604895]
[1750664451895,7.186,2259.5,2259.4,4.42595379]
[1750664453099,7.186,2259.5,2259.4,4.43655379]
[1750664453297,0.8149,2259.9,2259.4,5.40841079]
[1750664453512,1.905,2260.1,2259.9,4.42496979]
[1750664453733,7.185,2260.0,2259.8,4.42506692]
[1750664454733,7.185,2260.0,2259.9,4.42497455]
[1750664454937,7.185,2260.0,2259.9,0.0106]
[1750664455131,1.905,2260.1,2260.0,4.42477876]
[1750664455332,19.09,2260.1,2260.0,4.42477876]
[1750664455526,10.0,2260.0,2259.9,4.43547413]
[1750664455831,9.09,2260.1,2259.9,4.43547413]
[1750664456343,9.09,2260.1,2259.8,4.42506153]
[1750664457333,9.09,2260.1,2259.8,4.43566153]
[1750664458133,9.09,2260.1,2259.8,4.42514238]
[1750664458134,10.0,2260.0,2259.8,4.42514238]
[1750664458445,0.7939,2259.9,2259.7,4.42525429]
[1750664458646,7.185,2259.8,2259.5,4.42567288]
[1750664459639,7.185,2259.8,2259.6,4.42555736]
[1750664461034,7.185,2259.8,2259.7,4.42536619]
[1750664461639,7.184,2260.1,2259.8,0.7637]
[1750664461936,10.0,2260.0,2259.9,4.42486394]
[1750664462305,7.184,2260.1,2259.9,4.42486394]
[1750664462503,7.184,2260.1,2259.6,0.7725]
[1750664462703,7.184,2260.1,2259.2,0.7725]
[1750664462704,7.75944225,2260.0,2259.2,0.7725]
[1750664463028,0.808,2259.9,2259.5,4.42556369]
[1750664463232,7.2428,2259.8,2259.2,0.7725]
[1750664463451,16.84544225,2259.8,2259.4,4.42594875]
[1750664463747,0.0588,2259.7,2259.4,4.42594875]
[1750664463902,0.7555,2259.6,2259.3,4.42606954]
[1750664464244,6.93095624,2259.5,2259.3,4.42606954]
[1750664464609,6.93095624,2259.5,2259.2,4.42626722]
[1750664464809,6.93095624,2259.5,2259.3,4.42613126]
[1750664465110,6.93095624,2259.5,2259.0,0.8201]
[1750664465111,6.93095624,2259.5,2259.2,4.4262488]
[1750664465418,6.93095624,2259.5,2259.3,4.42606278]
[1750664466345,6.93095624,2259.5,2259.4,4.42595379]
[1750664468037,6.93095624,2259.5,2259.3,4.42608196]
[1750664468632,6.93095624,2259.5,2259.4,4.42595379]
[1750664471357,6.93095624,2259.5,2259.3,4.42604255]
[1750664472157,6.93095624,2259.5,2259.2,4.42622722]
[1750664472359,6.93095624,2259.5,2259.3,4.42614589]
[1750664473038,16.93095624,2259.5,2259.4,4.42595379]
[1750664473560,16.93095624,2259.5,2259.3,4.42604109]
[1750664474138,16.93095624,2259.5,2259.4,4.42595379]
[1750664474660,16.93095624,2259.5,2259.3,4.42603952]
[1750664475556,16.93095624,2259.5,2259.4,4.42595379]
[1750664475743,16.93095624,2259.5,2259.2,4.4263456]
[1750664476262,16.93095624,2259.5,2259.3,4.42611854]
[1750664478963,16.93095624,2259.5,2259.1,4.42636339]
[1750664479143,16.99165624,2259.5,2259.2,4.42631548]
[1750664479855,0.0607,2259.3,2259.0,4.42663984]
[1750664480044,7.184,2259.2,2259.1,4.42654154]
[1750664480783,7.184,2259.2,2259.0,4.42662668]
[1750664481066,7.2447,2259.2,2258.9,4.42689323]
[1750664481270,7.2447,2259.2,2258.7,4.42713659]
[1750664481436,7.2447,2259.2,2258.8,4.42694824]
[1750664482141,0.7941,2259.0,2258.4,0.7758]
[1750664482452,7.184,2258.9,2258.6,4.42741069]
[1750664483277,17.184,2258.9,2258.8,4.42712944]
[1750664483880,17.184,2258.9,2258.7,4.42721915]
[1750664484468,17.184,2258.9,2258.6,4.42742696]
[1750664486583,17.184,2258.9,2258.7,4.42729104]
[1750664488346,17.184,2258.9,2258.7,4.42732545]
[1750664488543,17.184,2258.9,2258.7,4.42715435]
[1750664489051,17.184,2258.9,2258.6,4.42740827]
[1750664490980,17.184,2258.9,2258.7,4.42732406]
[1750664491876,17.184,2258.9,2258.6,4.4274187]
[1750664492076,17.184,2258.9,2258.7,4.42731741]
[1750664496484,17.184,2258.9,2258.6,4.42743563]
[1750664496882,17.184,2258.9,2258.4,2.106752]
[1750664497070,17.184,2258.9,2258.7,4.42714306]
[1750664498472,17.184,2258.9,2258.6,4.42742265]
[1750664498797,17.184,2258.9,2258.7,4.42729709]
[1750664499597,17.184,2258.9,2258.8,4.42712944]
[1750664501795,17.184,2258.9,2258.7,4.42727251]
[1750664502303,20.47494225,2258.8,2258.4,1.330952]
[1750664502508,0.8145,2258.5,2258.1,4.42841234]
[1750664502695,10.0,2258.3,2258.1,4.42841234]
[1750664503010,0.8145,2258.5,2258.1,4.42841234]
[1750664503011,17.184,2258.2,2258.1,4.42841234]
[1750664506499,7.184,2258.3,2258.2,4.42830573]
[1750664506659,7.184,2258.3,2258.0,5.2251103]
[1750664506660,7.184,2258.3,2258.1,4.42839484]
[1750664507705,7.184,2258.3,2258.2,4.42830573]
[1750664507904,7.184,2258.3,2258.1,4.42839484]
[1750664507905,7.184,2258.3,2258.1,4.42841744]
[1750664508414,7.184,2258.3,2258.2,4.42830573]
[1750664508913,7.184,2258.3,2258.1,4.42839434]
[1750664509274,7.184,2258.3,2258.2,4.42830573]
[1750664509605,7.184,2258.3,2258.1,4.42841181]
[1750664509972,7.184,2258.3,2258.2,4.42830573]
[1750664510810,7.184,2258.3,2258.1,4.42843387]
[1750664511111,7.184,2258.3,2258.2,4.42830573]
[1750664512706,7.184,2258.3,2258.1,4.42839159]
[1750664513444,7.184,2258.3,2257.8,6.58196164]
[1750664513579,8.0692,2258.3,2257.9,4.42870504]
[1750664514110,10.0,2258.2,2257.8,4.42902401]
[1750664514490,10.0,2258.2,2258.0,4.42850994]
[1750664515624,10.0,2258.2,2257.9,4.42879239]
[1750664515842,10.0,2258.2,2258.0,4.42869138]
[1750664516509,10.0566,2258.2,2257.9,4.42880696]
[1750664517097,1.9161,2258.1,2257.7,4.42927228]
[1750664517398,5.2297,2258.0,2257.8,4.42907936]
[1750664518009,15.2297,2258.0,2257.9,4.4847941]
[1750664519510,15.2297,2258.0,2257.9,0.0559]
[1750664519712,15.2297,2258.0,2257.8,4.48489091]
[1750664520222,5.2297,2258.0,2257.8,4.48489091]
[1750664520730,5.2297,2258.0,2257.7,4.42918162]
[1750664520949,5.2297,2258.0,2257.7,4.48508162]
[1750664521526,5.2297,2258.0,2257.6,0.0559]
[1750664521727,5.2297,2258.0,2257.7,4.4292029]
[1750664521927,5.2297,2258.0,2257.7,4.4851029]
[1750664522128,5.2297,2258.0,2257.8,4.42906693]
[1750664522345,5.2297,2258.0,2257.9,4.4288941]
[1750664522709,2.6697,2258.1,2257.9,4.4288941]
[1750664522915,2.6697,2258.1,2257.8,4.48491917]
[1750664523322,2.6697,2258.1,2257.9,4.42889051]
[1750664524134,1.901,2258.1,2257.9,4.42889051]
[1750664524342,11.901,2258.1,2258.0,0.0559]
[1750664524552,11.901,2258.1,2257.8,5.25099412]
[1750664524553,13.8096,2258.1,2257.7,4.42917903]
[1750664524849,0.7531,2258.0,2257.6,4.42933673]
[1750664525029,0.7531,2258.0,2257.6,4.48523673]
[1750664525418,7.185,2257.9,2257.5,4.42964527]
[1750664525735,1.56975422,2257.8,2257.5,4.42964527]
[1750664525936,7.185,2257.9,2257.5,4.42964527]
[1750664526732,7.185,2257.9,2257.1,5.76210111]
[1750664526733,0.7531,2257.7,2257.1,4.43030842]
[1750664526914,10.0,2257.5,2257.2,4.48616605]
[1750664527115,10.0,2257.5,2257.3,4.42996768]
[1750664527327,10.0,2257.5,2257.4,0.0559]
[1750664527712,10.0,2257.5,2257.2,4.43016563]
[1750664527915,10.0,2257.5,2257.3,4.43007132]
[1750664528262,1.899,2257.6,2257.5,4.42967052]
[1750664528548,11.899,2257.6,2257.5,4.42967052]
[1750664529447,1.899,2257.6,2257.5,4.42967052]
[1750664530032,1.899,2257.8,2257.6,4.42947362]
[1750664530233,10.0,2258.3,2257.7,4.42928644]
[1750664530453,10.7531,2258.1,2257.7,4.42928644]
[1750664530621,0.41381924,2258.0,2257.7,4.42928644]
[1750664530950,1.899,2258.0,2257.8,4.42907845]
[1750664531317,1.899,2258.0,2257.7,5.24409744]
[1750664531623,1.899,2258.0,2257.8,4.42908534]
[1750664532434,1.899,2258.1,2257.9,4.42879896]
[1750664533758,1.899,2258.1,2257.8,4.42898879]
[1750664534122,1.899,2258.1,2257.9,4.42888832]
[1750664534324,1.899,2258.1,2258.0,4.42869796]
[1750664534525,1.899,2258.4,2258.0,5.31434282]
[1750664534725,0.7935,2258.2,2257.7,0.7875]
[1750664535055,0.7935,2258.2,2257.8,4.42899702]
[1750664535554,7.9775,2258.2,2257.7,5.2166812]
[1750664536136,7.9775,2258.2,2257.7,4.4291812]
[1750664536360,7.9775,2258.2,2257.8,4.42906469]
[1750664536556,10.74109423,2258.2,2257.9,4.428881]
[1750664536863,7.184,2258.2,2258.0,4.42867276]
[1750664537563,7.184,2258.2,2258.1,0.0559]
[1750664537768,11.899,2258.3,2257.9,4.42882599]
[1750664537969,11.899,2258.3,2258.1,0.0559]
[1750664538943,13.88771,2258.3,2257.9,0.0559]
[1750664539468,0.41448205,2258.2,2257.9,0.0559]
[1750664539638,13.88771,2258.3,2257.9,4.48479164]
[1750664539835,0.41457959,2258.2,2257.9,4.42889164]
[1750664540035,13.88771,2258.3,2257.9,4.48479164]
[1750664540235,0.41456984,2258.2,2257.9,4.48479164]
[1750664540437,13.88771,2258.3,2257.9,0.0559]
[1750664540741,0.41457758,2258.2,2257.9,0.0559]
[1750664540943,0.8188,2258.1,2257.8,0.0559]
[1750664541142,0.8188,2258.1,2257.7,4.48504375]
[1750664541654,0.8188,2258.1,2257.7,4.42914375]
[1750664541841,0.8188,2258.1,2257.6,0.7933]
[1750664541842,8.57824225,2258.1,2257.6,0.8492]
[1750664542044,8.45643478,2258.0,2257.5,4.48554276]
[1750664542246,0.41463633,2257.9,2257.5,4.48554276]
[1750664542451,1.899,2257.8,2257.5,4.48554276]
[1750664543061,1.899,2257.8,2257.5,4.42964276]
[1750664545681,10.0,2257.7,2257.4,4.42976461]
[1750664545847,10.0,2257.7,2257.5,4.42967387]
[1750664546563,10.0,2257.7,2257.3,5.76155345]
[1750664546882,17.184,2257.7,2257.3,5.76155345]
[1750664547258,17.184,2257.7,2257.4,4.42987437]
[1750664547490,17.184,2257.7,2257.5,4.42965654]
[1750664547982,17.184,2257.7,2257.3,5.76160216]
[1750664548595,19.16976,2257.7,2257.2,4.43015874]
[1750664548948,19.16976,2257.7,2257.2,1.331667]
[1750664549156,0.41486453,2257.6,2257.1,4.43046386]
[1750664549375,19.16976,2257.7,2257.1,5.76217286]
[1750664549569,0.41486752,2257.6,2257.1,5.76217286]
[1750664549850,26.92920225,2257.7,2257.1,5.76217286]
[1750664550174,1.88924538,2257.6,2257.2,4.43023985]
[1750664550482,9.16976,2257.7,2257.3,0.0269]
[1750664551089,0.783,2257.6,2257.1,4.45726396]
[1750664551302,0.783,2257.6,2257.1,4.43036396]
[1750664551455,0.783,2257.6,2257.2,0.0269]
[1750664551649,1.77122023,2257.5,2257.2,0.0269]
[1750664552099,11.77122023,2257.5,2257.2,0.0269]
[1750664552262,0.8189,2257.4,2256.9,4.45764433]
[1750664552465,0.8189,2257.4,2257.1,4.43035177]
[1750664552698,0.8189,2257.4,2257.1,4.45725177]
[1750664553005,10.8189,2257.4,2257.1,4.45725177]
[1750664553206,11.79474938,2257.4,2257.1,4.45725177]
[1750664553390,18.97874938,2257.4,2257.1,4.45725177]
[1750664554015,18.97874938,2257.4,2257.1,4.43035177]
[1750664554304,18.97874938,2257.4,2257.2,0.0269]
[1750664555095,8.97874938,2257.4,2257.2,4.45706523]
[1750664555259,9.08,2257.4,2257.3,4.4299388]
[1750664555462,9.08,2257.4,2257.3,4.4568388]
[1750664555855,1.896,2257.4,2257.3,4.4568388]
[1750664556459,1.896,2257.5,2257.3,4.45696081]
[1750664556659,11.896,2257.5,2257.2,4.43015606]
[1750664556896,11.896,2257.5,2257.3,0.0269]
[1750664559300,11.896,2257.5,2257.2,5.76201438]
[1750664559502,17.9619,2257.4,2257.2,0.0269]
[1750664559660,17.9619,2257.4,2257.2,4.43026078]
[1750664559855,17.184,2257.4,2257.3,0.0269]
[1750664560072,10.0,2257.4,2257.3,0.0269]
[1750664560285,19.08,2257.4,2257.3,0.0269]
[1750664560464,1.908,2257.5,2257.3,0.0269]
[1750664560666,0.7779,2257.6,2257.4,0.0269]
[1750664560963,9.08,2257.7,2257.3,0.0269]
[1750664561185,2.6739,2257.9,2257.6,0.0269]
[1750664561363,1.896,2257.9,2257.5,4.47390779]
[1750664561564,1.896,2257.9,2257.6,4.42938656]
[1750664562273,1.896,2257.9,2257.7,0.0269]
[1750664562468,1.896,2257.9,2257.5,0.0269]
[1750664562799,10.7779,2257.8,2257.5,0.0269]
[1750664563095,10.7779,2257.8,2257.4,4.42987507]
[1750664563625,10.7779,2257.8,2257.5,4.42964323]
[1750664563833,10.0,2257.8,2257.6,4.42947324]
[1750664564331,10.0,2257.8,2257.6,5.76101024]
[1750664566397,10.0,2257.8,2257.6,1.331537]
[1750664567612,10.0,2257.8,2257.6,1.390037]
[1750664567912,10.0,2257.8,2257.7,0.0585]
[1750664571637,9.079,2257.9,2257.7,0.0585]
[1750664572140,9.079,2257.9,2257.8,0.0585]
[1750664572908,19.079,2257.9,2257.8,0.0585]
[1750664573108,19.49361111,2257.9,2257.8,0.0585]
[1750664573320,19.49361472,2257.9,2257.8,0.0585]
[1750664573753,19.49361909,2257.9,2257.8,0.0585]
[1750664573953,10.0,2257.8,2257.7,1.331472]
[1750664574147,9.079,2257.9,2257.7,5.76074094]
[1750664575337,9.079,2257.9,2257.7,1.331472]
[1750664576158,9.8513,2257.9,2257.5,4.42957487]
[1750664576523,9.8513,2257.9,2257.5,5.76117087]
[1750664577456,9.8513,2257.9,2257.6,4.42945518]
[1750664577757,9.8513,2257.9,2257.6,0.0023]
[1750664577964,0.43763326,2258.8,2257.9,0.7682]
[1750664578165,0.8019,2258.9,2258.8,0.0023]
[1750664578166,1.896,2258.9,2258.8,0.0023]
[1750664578363,0.8019,2259.1,2258.8,0.0023]
[1750664578577,2.6979,2259.3,2258.8,4.42930124]
[1750664578774,1.4034267,2259.2,2258.9,4.42690039]
[1750664578973,0.9895,2259.2,2258.7,1.330893]
[1750664579130,0.9895,2259.2,2258.7,1.333193]
[1750664579331,10.9895,2259.2,2258.8,4.4269648]
[1750664579535,0.9895,2259.2,2258.8,4.4292648]
[1750664579765,0.36874,2259.1,2258.8,4.4292648]
[1750664580391,0.9895,2259.2,2259.0,0.0023]
[1750664580734,10.9895,2259.2,2259.0,0.0023]
[1750664580969,18.74894225,2259.2,2258.7,1.333193]
[1750664581467,18.76404225,2259.2,2258.7,1.333193]
[1750664582182,18.74894225,2259.2,2258.7,5.76045468]
[1750664582329,12.14468422,2259.1,2258.7,5.76045468]
[1750664583128,10.0,2258.9,2258.4,0.7738]
[1750664583335,10.0,2258.9,2258.6,4.42741782]
[1750664583657,10.0,2258.9,2258.8,4.42942944]
[1750664583869,2.14468422,2259.1,2258.7,1.330912]
[1750664583870,9.073,2259.1,2258.9,4.42923346]
[1750664584034,9.073,2259.1,2258.9,0.0023]
[1750664584235,9.073,2259.1,2258.9,4.42921486]
[1750664584541,2.28153982,2260.4,2258.9,4.42921486]
[1750664584542,0.7894,2259.7,2259.0,0.8217]
[1750664584734,0.7894,2259.9,2259.5,4.42566093]
[1750664585068,0.7894,2259.9,2259.6,4.42782126]
[1750664585264,0.7894,2259.9,2259.6,0.0023]
[1750664585666,0.7894,2259.9,2259.3,0.0023]
[1750664585867,0.7894,2259.9,2259.2,5.20748745]
[1750664585868,1.85488423,2259.8,2259.2,5.20748752]
[1750664586038,1.85488423,2259.8,2259.4,4.4259412]
[1750664586243,0.7894,2259.9,2259.4,4.42587983]
[1750664586468,10.0,2260.0,2259.7,0.0023]
[1750664586773,9.8679,2260.1,2259.7,0.0023]
[1750664586971,10.0,2260.0,2259.7,0.0023]
[1750664587273,10.0,2260.0,2259.6,0.0023]
[1750664587472,12.76273423,2260.0,2259.6,0.0023]
[1750664587658,12.76273423,2260.0,2259.5,4.42571988]
[1750664587836,12.76273423,2260.0,2259.6,0.0023]
[1750664588683,12.76273423,2260.0,2259.6,4.42782971]
[1750664589195,12.76273423,2260.0,2259.7,4.4276593]
[1750664589671,12.76273423,2260.0,2259.7,0.0023]
[1750664590002,12.76273423,2260.0,2259.6,0.0023]
[1750664590221,12.76273423,2260.0,2259.7,4.42536476]
[1750664590564,12.76273423,2260.0,2259.6,0.0023]
[1750664591071,12.76273423,2260.0,2259.5,5.75612727]
[1750664591293,1.97009538,2259.9,2259.5,1.332739]
[1750664591491,1.97009538,2259.9,2259.5,5.75847597]
[1750664591695,1.97009538,2259.9,2259.6,4.42777595]
[1750664591893,1.97009538,2259.9,2259.6,0.0023]
[1750664592697,0.23141571,2261.6,2259.8,0.8017]
[1750664592896,9.8895,2260.8,2260.3,0.0593]
[1750664593281,9.8895,2260.8,2260.4,1.329979]
[1750664593594,2.7125,2260.8,2260.5,0.0593]
[1750664593764,2.7125,2260.8,2260.5,4.48294774]
[1750664593964,11.892,2260.8,2260.5,0.0593]
[1750664594164,14.94044,2260.8,2260.5,0.0593]
[1750664594601,4.94044,2260.8,2260.4,5.75393106]
[1750664594798,1.892,2260.8,2260.6,0.0593]
[1750664595098,0.7754,2261.0,2260.4,5.75393049]
[1750664595299,9.068,2261.1,2260.5,4.42370449]
[1750664595691,10.0,2261.0,2260.5,4.42370449]
[1750664595879,9.068,2261.1,2260.6,4.42354533]
[1750664596080,9.8352,2261.2,2260.6,4.42354533]
[1750664596276,10.81872,2261.2,2260.6,4.42354533]
[1750664596481,10.81872,2261.2,2260.7,5.18440092]
[1750664596676,10.0,2261.1,2260.8,0.0593]
[1750664597668,0.98352,2261.2,2260.7,0.761]
[1750664597989,19.066,2261.3,2260.7,0.761]
[1750664598987,0.0151,2261.1,2260.4,2.081079]
[1750664599398,10.7709,2261.2,2260.4,2.081079]
[1750664599609,10.7709,2261.2,2260.4,6.50497319]
[1750664600806,10.7709,2261.2,2260.4,2.081079]
[1750664601002,11.98369,2261.1,2260.4,2.081079]
[1750664601199,1.98369,2261.1,2260.4,2.081079]
[1750664602290,1.98369,2261.1,2260.4,6.50504255]
[1750664602671,10.786,2261.2,2260.4,6.50504255]
[1750664602867,10.786,2261.2,2260.4,2.081079]
[1750664603282,10.7709,2261.2,2260.4,0.7511]
[1750664603600,9.879,2261.1,2260.2,4.42433046]
[1750664603801,12.12842303,2261.0,2260.3,0.7888]
[1750664604184,12.14352303,2261.0,2260.3,0.7888]
[1750664604379,10.8358,2260.8,2260.3,0.7888]
[1750664604597,7.172,2260.7,2260.3,0.7888]
[1750664604916,7.172,2260.7,2260.0,0.8211]
[1750664605218,7.172,2260.7,2260.0,5.81514868]
[1750664605219,1.891,2260.6,2260.0,5.81514868]
[1750664605921,1.891,2260.7,2260.1,4.42457092]
[1750664606282,1.891,2260.7,2260.2,4.42436524]
[1750664606497,2.12842303,2261.0,2260.3,0.8127]
[1750664606718,11.891,2260.9,2260.4,4.42385143]
[1750664607019,7.9974,2261.0,2260.3,0.8127]
[1750664607020,1.891,2261.0,2260.5,4.42375401]
[1750664607225,3.87289,2261.0,2260.4,4.42391601]
[1750664607519,3.87289,2261.0,2260.5,0.0593]
[1750664607727,3.87289,2261.0,2260.4,4.42391601]
[1750664608586,3.87289,2261.0,2260.4,0.0593]
[1750664609083,3.87289,2261.0,2260.4,4.48327809]
[1750664609325,3.87289,2261.0,2260.5,0.0593]
[1750664609615,3.87289,2261.0,2260.6,0.0593]
[1750664612587,2.104489,2260.9,2260.3,0.8127]
[1750664612790,2.104489,2260.9,2260.3,5.2368803]
[1750664613825,2.104489,2260.9,2260.3,0.8127]
[1750664614309,2.104489,2260.9,2260.3,5.23687124]
[1750664615586,2.104489,2260.9,2260.3,5.23688999]
[1750664616149,1.46525061,2260.8,2260.3,0.8127]
[1750664616822,11.45015061,2260.8,2260.3,5.23688123]
[1750664618627,0.64645061,2260.8,2260.3,5.23688123]
[1750664618802,10.64645061,2260.8,2260.3,5.23688123]
[1750664619508,11.70457568,2260.8,2260.3,0.8127]
[1750664620056,11.70457568,2260.8,2260.3,5.23688294]
[1750664620657,10.64645061,2260.8,2260.3,5.23688294]
[1750664620962,10.66155061,2260.8,2260.3,0.8127]
[1750664621257,11.72077492,2260.8,2260.3,0.8127]
[1750664621459,11.70567492,2260.8,2260.3,5.23687019]
[1750664621622,1.05922431,2260.7,2260.3,5.23687019]
[1750664621823,10.64645061,2260.8,2260.3,5.23687019]
[1750664622051,1.06008272,2260.7,2260.3,5.23687019]
[1750664622251,1.06008267,2260.7,2260.3,5.23687019]
[1750664622453,10.64645061,2260.8,2260.3,5.23687019]
[1750664622639,1.06008977,2260.7,2260.3,5.23687019]
[1750664622823,10.64645061,2260.8,2260.3,0.8127]
[1750664623019,2.31482275,2260.7,2260.3,0.8127]
[1750664623224,1.06127769,2260.6,2260.3,0.8127]
[1750664623426,1.25354506,2260.7,2260.3,0.8127]
[1750664623624,1.06131314,2260.6,2260.3,0.8127]
[1750664623932,1.25354506,2260.7,2260.3,0.8127]
[1750664624136,0.8233,2260.3,2259.7,0.8272]
[1750664624348,10.0,2259.9,2259.7,0.8272]
[1750664625434,9.061,2260.2,2259.8,4.42517036]
[1750664625649,1.05999261,2260.2,2259.9,4.42485062]
[1750664625852,11.05999261,2260.3,2259.8,4.42506496]
[1750664626040,11.05999261,2260.3,2259.8,5.39282089]
[1750664626251,1.05999261,2260.3,2259.9,4.42487297]
[1750664626555,10.0,2260.3,2259.9,4.42487297]
[1750664626754,11.05999261,2260.3,2259.9,4.42487297]
[1750664627264,1.05999261,2260.3,2259.9,4.42487297]
[1750664627446,1.05999261,2260.3,2259.8,5.39282033]
[1750664627447,10.0,2260.3,2259.8,5.39282033]
[1750664627653,11.05999261,2260.3,2259.8,5.39282033]
[1750664627960,10.0,2260.3,2259.9,4.42497151]
[1750664628151,10.0,2260.3,2260.0,0.0589]
[1750664628543,9.062,2260.5,2260.0,5.23499038]
[1750664628866,11.05948294,2260.6,2260.3,0.7609]
[1750664629029,11.05948294,2260.6,2260.4,0.0589]
[1750664629229,10.0,2260.6,2260.4,0.0589]
[1750664629478,1.89,2260.7,2260.3,0.7609]
[1750664629630,1.89,2260.7,2260.4,0.0589]
[1750664630273,1.05940374,2261.3,2260.5,4.42368149]
[1750664630469,9.062,2261.1,2260.7,0.0589]
[1750664630636,10.0,2261.0,2260.7,0.0589]
[1750664632674,10.7615,2261.3,2260.7,0.0589]
[1750664632891,21.27720077,2261.2,2260.7,0.0589]
[1750664633070,11.05937215,2261.1,2260.7,0.0589]
[1750664633380,10.0,2261.1,2260.7,0.0589]
[1750664633591,11.27720077,2261.2,2260.7,0.0589]
[1750664638354,11.29230077,2261.2,2260.7,0.0589]
[1750664638752,2.20538008,2261.1,2260.7,0.0589]
[1750664641369,1.889,2261.5,2261.0,5.21171956]
[1750664641568,1.889,2261.5,2261.0,0.789]
[1750664641569,9.06,2261.5,2261.0,0.789]
[1750664641771,10.0,2261.4,2261.0,0.789]
[1750664642357,10.0,2261.4,2261.0,5.21173123]
[1750664642553,10.0,2261.4,2261.0,0.789]
[1750664642789,11.906,2261.4,2261.0,0.789]
[1750664643163,11.906,2261.4,2261.0,5.211809]
[1750664643472,11.889,2261.5,2261.0,0.789]
[1750664644069,1.889,2261.5,2261.1,4.42251869]
[1750664644281,1.889,2261.5,2261.2,0.7857]
[1750664646058,1.9041,2261.5,2261.0,0.7925]
[1750664646261,0.0151,2261.4,2261.0,0.7925]
[1750664646756,10.0151,2261.3,2261.0,0.7925]
[1750664646974,10.0151,2261.3,2260.7,0.7523]
[1750664647573,10.0,2261.3,2260.7,0.7523]
[1750664647986,10.0,2261.3,2260.7,5.175687]
[1750664648586,10.0,2261.3,2260.8,4.42320807]
[1750664649363,10.0,2261.3,2260.8,5.38310743]
[1750664649563,10.0,2261.3,2260.9,4.42298695]
[1750664649884,10.0,2261.3,2261.0,0.8286]
[1750664650089,10.0,2261.3,2261.0,5.25137335]
[1750664650484,10.0,2261.3,2261.0,5.25139492]
[1750664650908,10.0,2261.3,2261.0,0.8286]
[1750664652203,10.0,2261.3,2261.0,5.25141841]
[1750664652404,10.0,2261.3,2261.1,4.4226158]
[1750664653105,10.0,2261.3,2261.0,5.251357]
[1750664655331,10.0,2261.7,2261.0,5.251357]
[1750664655605,10.0,2261.5,2261.2,4.42233099]
[1750664656608,1.889,2261.6,2261.2,4.42233099]
[1750664656988,1.889,2261.6,2261.1,5.25324278]
[1750664658428,1.889,2261.6,2261.1,0.8307]
[1750664658633,10.0,2261.5,2261.1,0.8307]
[1750664659317,11.889,2261.6,2261.1,0.8307]
[1750664659632,19.057,2261.7,2261.2,5.19093675]
[1750664659832,19.057,2261.7,2261.2,5.19102476]
[1750664660034,19.057,2261.7,2261.2,0.7686]
[1750664660209,19.057,2261.7,2261.2,6.15242101]
[1750664660930,1.888,2261.7,2261.4,0.7922]
[1750664664922,11.888,2261.7,2261.4,0.7922]
[1750664665331,1.888,2261.7,2261.4,0.7922]
[1750664668404,1.888,2261.7,2261.4,5.21422982]
[1750664668606,1.888,2261.7,2261.5,0.5258447]
[1750664671604,1.888,2261.7,2261.5,4.94754271]
[1750664671809,1.888,2261.7,2261.6,0.8247]
[1750664672716,17.76931185,2261.9,2261.5,0.5258447]
[1750664672915,10.0,2261.6,2261.2,0.7808]
[1750664673115,7.75421185,2261.4,2260.9,0.8266]
[1750664673336,14.92121185,2261.4,2260.9,5.2495891]
[1750664674012,7.167,2261.4,2260.9,5.24952637]
[1750664674215,7.167,2261.4,2261.0,4.42280389]
[1750664674445,17.167,2261.5,2261.1,4.42258515]
[1750664674647,17.167,2261.5,2261.2,0.44225851]
[1750664675146,24.93631185,2261.5,2261.0,0.8261]
[1750664675355,0.7518,2261.4,2261.0,0.8261]
[1750664677651,0.7518,2261.4,2261.0,0.8398]
[1750664678957,7.76931185,2261.3,2260.8,5.20229235]
[1750664679140,7.76931185,2261.3,2260.8,5.21599235]
[1750664679455,7.76931185,2261.3,2260.8,0.7928]
[1750664680045,7.75421185,2261.3,2260.8,5.20222]
[1750664680251,7.75421185,2261.3,2260.9,0.0137]
[1750664680925,7.75421185,2261.3,2260.8,6.16477343]
[1750664680926,7.75421185,2261.3,2260.8,0.7928]
[1750664681229,0.7669,2261.4,2260.8,5.21599469]
[1750664681442,10.7518,2261.4,2260.9,4.4229644]
[1750664681755,10.7518,2261.4,2261.0,0.0137]
[1750664682160,10.7518,2261.4,2260.8,5.215916]
[1750664682746,10.7518,2261.4,2260.9,4.42300233]
[1750664682954,10.7518,2261.4,2260.9,4.43670233]